Workbook

Sheet 2022 Example
A1: SAMPLE REPORT - EXAMPLE ONLY | AS1: 2.8 | AT1: 0.03 | AU1: 0.1 | AV1: 0.4 | AW1: 0.03 | AX1: 0.02 | BK1: Innovative Concept # | BL1: 1 | BM1: =BL1 -> 1 | BN1: =BM1 -> 1 | BO1: 2 | BP1: =BO1 -> 2 | BQ1: =BP1 -> 2 | BR1: 3 | BS1: =BR1 -> 3 | BT1: =BS1 -> 3
A2: Annual Report 93130.17 (d) | BL2: NOx (MT) | BM2: PM2.5 (MT) | BN2: ROG (MT) | BO2: NOx (MT) | BP2: PM2.5 (MT) | BQ2: ROG (MT) | BR2: NOx (MT) | BS2: PM2.5 (MT) | BT2: ROG (MT) | BU2: Total all IC's
A3: Monthly Report 93130.7 (e)(4) | BK3: Total Credits Available | BL3: =SUM(BL4:BL6) -> 171.38 | BM3: =SUM(BM4:BM6) -> 4.03 | BN3: 11.24 | BO3: 123 | BP3: 0 | BQ3: 3 | BR3: 114.6 | BS3: 5.9 | BT3: 44.2 | BU3: =SUM(BL3,BO3,BR3) -> 408.98 | BV3: =SUM(BM3,BP3,BS3) -> 9.93 | BW3: 58.44
BJ4: Credits Available at SOY | BK4: Banked Credits Pre-2027 (MT) | BL4: 112.7 | BM4: 2.65 | BN4: 7.4 | BO4: 0 | BP4: 0 | BQ4: 0 | BR4: 60 | BS4: 3 | BT4: 25 | BU4: 172.7 | BV4: 5.65 | BW4: 32.4
BK5: IC Emission Credits (MT) - Gen CY, exp NEXT year | BL5: 29.34 | BM5: 0.69 | BN5: 1.92 | BO5: 60 | BP5: 0 | BQ5: 1.5 | BR5: 27 | BS5: 1.4 | BT5: 9.5 | BU5: 116.34 | BV5: 2.09 | BW5: 12.92
AJ6: =SUM(AJ11:AJ20) -> 4.880146748 | AK6: 0.06011774979 | AL6: 0.1838895876 | AM6: 2.200400926 | AN6: 0.1870340787 | AO6: 0.1210220509 | BK6: IC Emission Credits (MT) - Gen prev year, exp THIS year | BL6: 29.34 | BM6: 0.69 | BN6: 1.92 | BO6: 63 | BP6: 0 | BQ6: 1.5 | BR6: 27.6 | BS6: 1.5 | BT6: 9.7 | BU6: 119.94 | BV6: 2.19 | BW6: 13.12 | BY6: Use CY exp | CB6: Use NY exp | CE6: Use Banked | CH6: Cumulative emissions reduction Reqmt
A7: Chevron Richmond Long Wharf (RLW) | AS7: Reduced Emissions Required | BL7: IC.1 | BO7: IC.2 | BR7: IC.3
A8: (A) | B8: (B) | C8: (F) | D8: (C) | E8: (D) | I8: (M) | J8: (M) | K8: (N) | L8: (E) | M8: (G) | N8: (H) | O8: (H) | P8: (I) | S8: (K) | T8: (P) | U8: (J) | V8: (L) | W8: (L) | AH8: (O) | AI8: (O) | BH8: (U) | BO8: IC.2 and IC3 Emission Reduction Credits are for example only | BU8: (Q) | BV8: (R) | BW8: (S) | BX8: (T)
AD9: Boil Load (kW) | AH9: Total Fuel Consumed | AP9: Base Emissions | AY9: Reduced Emissions Required | BB9: Required Emissions Reductions | BE9: Total Availiable IC Emission Credits | BI9: CARB Approved IC# Credit Assigned | BL9: Available IC Credits in active expiration group
A10: Fleet Name | B10: Vessel Name | C10: Vessel Operator | D10: Vessel IMO number | E10: Vessel Class | F10: Pumping | G10: Eng MY | H10: Aux Type | I10: Fuel Type - Aux Engine | J10: Fuel Type - Boiler | K10: Sulfur content of fuel | L10: Emission Tier | M10: RLW Berth | N10: Arrival Date/Time | O10: Departure Date/Time | P10: Time of Vessel shift to another berth | Q10: Start of First Transfer Date/Time | R10: End of Last Transfer Date/Time | S10: Ready to Work Date/Time | T10: Pilot on-Board Date/Time | U10: Type of CAECS used (SP, CC, None) | V10: CAECS begins reducing emissions Date/Time | W10: CAECS stops reducing emissions Date/Time | X10: Berth (hrs) | Y10: Discharge (hrs) | Z10: Regulated (hrs) | AA10: Arrival time to CAECS start (hrs) | AB10: CAECS stop to Departure (hrs) | AC10: Boiler Aux Load (kW) | AD10: Boil Load (kW) Pumping | AE10: Boil Load (kW) Other | AF10: Aux SFC (g/kWh) | AG10: Boil SFC (g/kWh) | AH10: Aux Fuel (MT) | AI10: Boil Fuel (MT) | AJ10: CARB At-Berth Aux Engine NOx | AK10: CARB At-Berth Aux Engine PM2.5 | AL10: CARB At-Berth Aux Engine ROG | AM10: CARB At-Berth Boiler NOx | AN10: CARB At-Berth Boiler PM2.5 | AO10: CARB At-Berth Boiler ROG | AP10: CARB At-Berth Total NOx (MT) | AQ10: CARB At-Berth Total PM2.5 (MT) | AR10: CARB At-Berth Total ROG (MT) | AS10: =$AS$7&" "&AJ10 -> Reduced Emissions Required CARB At-Berth Aux Engine NOx | AT10: Reduced Emissions Required CARB At-Berth Aux Engine PM2.5 | AU10: Reduced Emissions Required CARB At-Berth Aux Engine ROG | AV10: Reduced Emissions Required CARB At-Berth Boiler NOx | AW10: Reduced Emissions Required CARB At-Berth Boiler PM2.5 | AX10: Reduced Emissions Required CARB At-Berth Boiler ROG | AY10: Reduced Emissions Required CARB At-Berth Total NOx (MT) | AZ10: Reduced Emissions Required CARB At-Berth Total PM2.5 (MT) | BA10: Reduced Emissions Required CARB At-Berth Total ROG (MT) | BB10: Required Emissions Reduction NOx (MT) | BC10: Required Emissions Reduction PM2.5 (MT) | BD10: Required Emissions Reduction ROG (MT) | BE10: Available IC Emissions Credits NOx (MT) | BF10: Available IC Emissions Credits PM2.5 (MT) | BG10: Available IC Emissions Credits ROG (MT) | BH10: IC Assigned | BI10: IC # Assigned NOx | BJ10: IC # Assigned PM2.5 | BK10: IC # Assigned ROG | BL10: Available IC Emissions Credits NOx (MT) | BM10: Available IC Emissions Credits PM2.5 (MT) | BN10: Available IC Emissions Credits ROG (MT) | BO10: Available IC Emissions Credits NOx (MT) | BP10: Available IC Emissions Credits PM2.5 (MT) | BQ10: Available IC Emissions Credits ROG (MT) | BR10: Available IC Emissions Credits NOx (MT) | BS10: Available IC Emissions Credits PM2.5 (MT) | BT10: Available IC Emissions Credits ROG (MT) | BU10: EO-specific Info | BV10: Vessel Exception | BW10: Request for use of Remediation Fund | BX10: TIE/VIE | BY10: NOx | BZ10: PM2.5 | CA10: ROG | CB10: NOx | CC10: PM2.5 | CD10: ROG | CE10: NOx | CF10: PM2.5 | CG10: ROG
A11: Fleet #1 | B11: Ship 1 | C11: Operator #1 | D11: IMO #1 | E11: SuezMax | F11: Steam | G11: 2014 | H11: PAL | L11: TG | M11: 4 | N11: 2022-01-01 | O11: 2022-01-01T20:01:00 | S11: 2022-01-01T02:00:00 | T11: 2022-01-01T19:01:00 | U11: None | X11: 20.01666667 | Y11: 12.75 | Z11: =(T11-S11)*24 -> 17.01666667 | AC11: 689 | AD11: 8170 | AE11: 875 | AF11: 217 | AG11: 300 | AH11: =+Z11*AC11*AF11/1000000 -> 2.544212883 | AI11: =+(AD11*Y11+AE11*(Z11-Y11))*AG11/1000000 -> 32.37025 | AJ11: =+$AH11/0.27*'EFs & LFs'!$I$9/1000 -> 0.1300375474 | AK11: =+$AH11/0.27*'EFs & LFs'!$J$9/1000 -> 0.001601911815 | AL11: =+$AH11/0.27*'EFs & LFs'!$K$9/1000 -> 0.004899965553 | AM11: =+$AI11/0.27*'EFs & LFs'!$I$10/1000 -> 0.2397796296 | AN11: =+$AI11/0.27*'EFs & LFs'!$J$10/1000 -> 0.02038126852 | AO11: =+$AI11/0.27*'EFs & LFs'!$K$10/1000 -> 0.01318787963 | AP11: =AJ11+AM11 -> 0.369817177 | AQ11: =AK11+AN11 -> 0.02198318033 | AR11: =AL11+AO11 -> 0.01808784518 | AS11: =+$AH11/0.27*AS$1/1000 -> 0.0263844299 | AT11: =+$AH11/0.27*AT$1/1000 -> 0.0002826903204 | AU11: 0.0009423010679 | AV11: =+$AI11/0.27*AV$1/1000 -> 0.04795592593 | AW11: 0.003596694444 | AX11: =+$AI11/0.27*AX$1/1000 -> 0.002397796296 | AY11: =AS11+AV11 -> 0.07434035583 | AZ11: =AT11+AW11 -> 0.003879384765 | BA11: =AU11+AX11 -> 0.003340097364 | BB11: =AP11-AY11 -> 0.2954768212 | BC11: =AQ11-AZ11 -> 0.01810379557 | BD11: =AR11-BA11 -> 0.01474774782 | BE11: =SUM(BL11,BO11,BR11)+(BY11=1)*SUM(BL$4,BO$4,BR$4,BL$5,BO$5,BR$5)+(CB11=1)*SUM(BL$4,BO$4,BR$4) -> 408.6845232 | BF11: =SUM(BM11,BP11,BS11)+(BZ11=1)*SUM(BM$4,BP$4,BS$4,BM$5,BP$5,BS$5)+(CC11=1)*SUM(BM$4,BP$4,BS$4) -> 9.911896204 | BG11: 58.42525225 | BH11: =IF(OR(BI11="NONE",BJ11="NONE",BK11="NONE"),"N","Y") -> Y | BI11: =IF(AND(BL$6=0,BO$6=0,BR$6=0),"NONE",((BL$6>0)*BL$1+(AND(BL$6=0,BO$6>0))*BO$1+(AND(BL$6=0,BO$6=0,BR$6>0))*BR$1)&IF(AND(BL$6<BB11,BL$6>0,BO$6>0),","&BO$1,IF(AND(BL$6+BO$6<BB11,BL$6+BO$6>0),","&BR$1,""))) -> 1 | BJ11: =IF(AND(BM$6=0,BP$6=0,BS$6=0),"NONE",((BM$6>0)*BM$1+(AND(BM$6=0,BP$6>0))*BP$1+(AND(BM$6=0,BP$6=0,BS$6>0))*BS$1)&IF(AND(BM$6<BC11,BM$6>0,BP$6>0),","&BP$1,IF(AND(BM$6+BP$6<BC11,BM$6+BP$6>0),","&BS$1,IF(AND(BM$6=0,BP$6=0,BS$6>0,BS$6<BC11),","&BM$1,"")))) -> 1 | BK11: =IF(AND(BN$6=0,BQ$6=0,BT$6=0),"NONE",((BN$6>0)*BN$1+(AND(BN$6=0,BQ$6>0))*BQ$1+(AND(BN$6=0,BQ$6=0,BT$6>0))*BT$1)&IF(AND(BN$6<BD11,BN$6>0,BQ$6>0),","&BQ$1,IF(AND(BN$6+BQ$6<BD11,BN$6+BQ$6>0),","&BT$1,""))) -> 1 | BL11: =MAX(BL6-$BB11,0) -> 29.04452318 | BM11: =MAX(BM6-$BC11,0) -> 0.6718962044 | BN11: =MAX(BN6-$BD11,0) -> 1.905252252 | BO11: =IF(BL11>0,BO$6,MAX(BO$6-IF(AND(BL10<BB11,BL10>0),$BB11-BL10,$BB11),0)) -> 63 | BP11: =IF(BM11>0,BP$6,MAX(BP$6-IF(AND(BM10<$BC11,BM10>0),$BB11-BM10,$BC11),0)) -> 0 | BQ11: =IF(BN11>0,BQ$6,MAX(BQ$6-IF(AND(BN10<BD11,BN10>0),$BB11-BN10,$BD11),0)) -> 1.5 | BR11: =IF(OR(BL11>0,BO11>0),BR$6,MAX(BR$6-IF(AND(BL$6+BO$6<BB11,BL10+BO10>0),$BB11-BL$6-BO$6,$BB11),0)) -> 27.6 | BS11: =IF(OR(BM11>0,BP11>0),BS$6,MAX(BS$6-IF(AND(BM$6+BP$6<BC11,BM$6+BP$6>0),$BC11-BM$6-BP$6,$BC11),0)) -> 1.5 | BT11: =IF(OR(BN11>0,BQ11>0),BT$6,MAX(BT$6-IF(AND(BN$6+BQ$6<BD11,BN$6+BQ$6>0),$BD11-BN$6-BQ$6,$BD11),0)) -> 9.7 | BY11: =IF(BL$6+BO$6+BR$6>SUM(BB$11:BB11),1,0) -> 1 | BZ11: =IF(BM$6+BP$6+BS$6>SUM(BC$11:BC11),1,0) -> 1 | CA11: =IF(BN$6+BQ$6+BT$6>SUM(BD$11:BD11),1,0) -> 1 | CB11: =IF(AND(BL$6+BO$6+BR$6<SUM(BB$11:BB11),BL$6+BO$6+BR$6+BL$5+BO$5+BR$5>SUM(BB$11:BB11),BY11=0),1,0) -> 0 | CC11: =IF(AND(BM$6+BP$6+BS$6<SUM(BC$11:BC11),BM$6+BP$6+BS$6+BM$5+BP$5+BS$5>SUM(BC$11:BC11),BZ11=0),1,0) -> 0 | CD11: =IF(AND(BN$6+BQ$6+BT$6<SUM(BD$11:BD11),BN$6+BQ$6+BT$6+BN$5+BQ$5+BT$5>SUM(BD$11:BD11),CA11=0),1,0) -> 0 | CE11: =IF(AND(BL$6+BO$6+BR$6<SUM(BB$11:BB11),BL$6+BO$6+BR$6+BL$5+BO$5+BR$5<SUM(BB$11:BB11),BL$6+BO$6+BR$6+BL$5+BO$5+BR$5+BL$4+BO$4+BR$4>SUM(BB$11:BB11),BY11=0,CB11=0),1,0) -> 0 | CF11: =IF(AND(BM$6+BP$6+BS$6<SUM(BC$11:BC11),BM$6+BP$6+BS$6+BM$5+BP$5+BS$5<SUM(BC$11:BC11),BM$6+BP$6+BS$6+BM$5+BP$5+BS$5+BM$4+BP$4+BS$4>SUM(BC$11:BC11),BZ11=0,CC11=0),1,0) -> 0 | CG11: =IF(AND(BN$6+BQ$6+BT$6<SUM(BD$11:BD11),BN$6+BQ$6+BT$6+BN$5+BQ$5+BT$5<SUM(BD$11:BD11),BN$6+BQ$6+BT$6+BN$5+BQ$5+BT$5+BN$4+BQ$4+BT$4>SUM(BD$11:BD11),CA11=0,CD11=0),1,0) -> 0 | CH11: =SUM(BB$11:BB11) -> 0.2954768212 | CI11: =SUM(BC$11:BC11) -> 0.01810379557 | CJ11: =SUM(BD$11:BD11) -> 0.01474774782
A12: Fleet #2 | B12: Ship 2 | C12: Operator #2 | D12: IMO #2 | E12: AfraMax | F12: Steam | G12: 2015 | H12: Aux | L12: 2 | M12: 1 | N12: 2022-01-01 | O12: 2022-01-01T11:10:00 | S12: 2022-01-01T02:00:00 | T12: 2022-01-01T10:10:00 | U12: None | X12: 11.16666667 | Y12: 9 | Z12: =(T12-S12)*24 -> 8.166666667 | AC12: 986 | AD12: 4976 | AE12: 875 | AF12: 217 | AG12: 300 | AH12: 1.747356333 | AI12: 13.21645 | AJ12: =+$AH12/0.27*'EFs & LFs'!$I$9/1000 -> 0.0893093237 | AK12: =+$AH12/0.27*'EFs & LFs'!$J$9/1000 -> 0.001100187321 | AL12: =+$AH12/0.27*'EFs & LFs'!$K$9/1000 -> 0.003365278864 | AM12: =+$AI12/0.27*'EFs & LFs'!$I$10/1000 -> 0.09789962963 | AN12: =+$AI12/0.27*'EFs & LFs'!$J$10/1000 -> 0.008321468519 | AO12: =+$AI12/0.27*'EFs & LFs'!$K$10/1000 -> 0.00538447963 | AP12: =AJ12+AM12 -> 0.1872089533 | AQ12: 0.00942165584 | AR12: 0.008749758494 | AS12: 0.01812073235 | AT12: 0.0001941507037 | AU12: 0.0006471690124 | AV12: 0.01957992593 | AW12: 0.001468494444 | AX12: 0.0009789962963 | AY12: =AS12+AV12 -> 0.03770065827 | AZ12: 0.001662645148 | BA12: 0.001626165309 | BB12: 0.1495082951 | BC12: 0.007759010691 | BD12: 0.007123593185 | BE12: =SUM(BL12,BO12,BR12)+(BY12=1)*SUM(BL$4,BO$4,BR$4,BL$5,BO$5,BR$5)+(CB12=1)*SUM(BL$4,BO$4,BR$4) -> 408.5350149 | BF12: =SUM(BM12,BP12,BS12)+(BZ12=1)*SUM(BM$4,BP$4,BS$4,BM$5,BP$5,BS$5)+(CC12=1)*SUM(BM$4,BP$4,BS$4) -> 9.904137194 | BG12: =SUM(BN12,BQ12,BT12)+(CA12=1)*SUM(BN$4,BQ$4,BT$4,BN$5,BQ$5,BT$5)+(CD12=1)*SUM(BN$4,BQ$4,BT$4) -> 58.41812866 | BH12: =IF(OR(BI12="NONE",BJ12="NONE",BK12="NONE"),"N","Y") -> Y | BI12: =IF(AND(BL11=0,BO11=0,BR11=0),"NONE",((BL11>0)*BL$1+(AND(BL11=0,BO11>0))*BO$1+(AND(BL11=0,BO11=0,BR11>0))*BR$1)&IF(AND(BL11<BB12,BL11>0,BO11>0),","&BO$1,IF(AND(BL11+BO11<BB12,BL11+BO11>0),","&BR$1,IF(AND(BL11=0,BO11=0,BR11>0,BR11<BB12),","&BL$1,"")))) -> 1 | BJ12: =IF(AND(BM11=0,BP11=0,BS11=0),"NONE",((BM11>0)*BM$1+(AND(BM11=0,BP11>0))*BP$1+(AND(BM11=0,BP11=0,BS11>0))*BS$1)&IF(AND(BM11<BC12,BM11>0,BP11>0),","&BP$1,IF(AND(BM11+BP11<BC12,BM11+BP11>0),","&BS$1,IF(AND(BM11=0,BP11=0,BS11>0,BS11<BC12),","&BM$1,"")))) -> 1 | BK12: =IF(AND(BN11=0,BQ11=0,BT11=0),"NONE",((BN11>0)*BN$1+(AND(BN11=0,BQ11>0))*BQ$1+(AND(BN11=0,BQ11=0,BT11>0))*BT$1)&IF(AND(BN11<BD12,BN11>0,BQ11>0),","&BQ$1,IF(AND(BN11+BQ11<BD12,BN11+BQ11>0),","&BT$1,IF(AND(BN11=0,BQ11=0,BT11>0,BT11<BD12),","&BN$1,"")))) -> 1 | BL12: =MAX(BL11-BB12,0)+AND($CB12=1,$CB11=0)*(BL$5+BR11-BB12)+AND($CE12=1,$CE11=0)*(BL$4+BR11-BB12) -> 28.89501488 | BM12: =MAX(BM11-BC12,0)+AND($CC12=1,$CC11=0)*(BM$5+BS11-BC12)+AND($CF12=1,$CF11=0)*(BM$4+BS11-BC12) -> 0.6641371937 | BN12: =MAX(BN11-BD12,0)+AND($CD12=1,$CD11=0)*(BN$5+BT11-BD12)+AND($CG12=1,$CG11=0)*(BN$4+BT11-BD12) -> 1.898128659 | BO12: =IF(BL12>0,BO11,MAX(BO11-IF(AND(BL11<BB12,BL11>0),$BB12-BL11,$BB12),0))+AND($CB12=1,$CB11=0)*BO$5+AND($CE12=1,$CE11=0)*BO$4 -> 63 | BP12: =IF(BM12-BC12>0,BP11,MAX(BP11-IF(AND(BM11<BC12,BM11>0),$BC12-BM11,$BC12),0))+AND($CC12=1,$CC11=0)*BP$5+AND($CF12=1,$CF11=0)*BP$4 -> 0 | BQ12: =IF(BN12>0,BQ11,MAX(BQ11-IF(AND(BN11<BD12,BN11>0),$BD12-BN11,$BD12),0))+AND($CD12=1,$CD11=0)*BQ$5+AND($CG12=1,$CG11=0)*BQ$4 -> 1.5 | BR12: =IF(OR(BL11-BB12>0,BO11-BB12>0),BR11,MAX(BR11-IF(AND(BL11+BO11<BB12,BL11+BO11>0),$BB12-BL11-BO11,$BB12),0))+AND($CB12=1,$CB11=0)*BR$5+AND($CE12=1,$CE11=0)*BR$4 -> 27.6 | BS12: =IF(OR(BM11-BC12>0,BP11-BC12>0),BS11,MAX(BS11-IF(AND(BM11+BP11<BC12,BM11+BP11>0),$BC12-BM11-BP11,$BC12),0))+AND($CC12=1,$CC11=0)*BS$5+AND($CF12=1,$CF11=0)*BS$4 -> 1.5 | BT12: =IF(OR(BN11-BD12>0,BQ11-BD12>0),BT11,MAX(BT11-IF(AND(BN11+BQ11<BD12,BN11+BQ11>0),$BD12-BN11-BQ11,$BD12),0))+AND($CD12=1,$CD11=0)*BT$5+AND($CG12=1,$CG11=0)*BT$4 -> 9.7 | BY12: =IF(BL$6+BO$6+BR$6>SUM(BB$11:BB12),1,0) -> 1 | BZ12: =IF(BM$6+BP$6+BS$6>SUM(BC$11:BC12),1,0) -> 1 | CA12: =IF(BN$6+BQ$6+BT$6>SUM(BD$11:BD12),1,0) -> 1 | CB12: =IF(AND(BL$6+BO$6+BR$6<SUM(BB$11:BB12),BL$6+BO$6+BR$6+BL$5+BO$5+BR$5>SUM(BB$11:BB12),BY12=0),1,0) -> 0 | CC12: =IF(AND(BM$6+BP$6+BS$6<SUM(BC$11:BC12),BM$6+BP$6+BS$6+BM$5+BP$5+BS$5>SUM(BC$11:BC12),BZ12=0),1,0) -> 0 | CD12: =IF(AND(BN$6+BQ$6+BT$6<SUM(BD$11:BD12),BN$6+BQ$6+BT$6+BN$5+BQ$5+BT$5>SUM(BD$11:BD12),CA12=0),1,0) -> 0 | CE12: =IF(AND(BL$6+BO$6+BR$6<SUM(BB$11:BB12),BL$6+BO$6+BR$6+BL$5+BO$5+BR$5<SUM(BB$11:BB12),BL$6+BO$6+BR$6+BL$5+BO$5+BR$5+BL$4+BO$4+BR$4>SUM(BB$11:BB12),BY12=0,CB12=0),1,0) -> 0 | CF12: =IF(AND(BM$6+BP$6+BS$6<SUM(BC$11:BC12),BM$6+BP$6+BS$6+BM$5+BP$5+BS$5<SUM(BC$11:BC12),BM$6+BP$6+BS$6+BM$5+BP$5+BS$5+BM$4+BP$4+BS$4>SUM(BC$11:BC12),BZ12=0,CC12=0),1,0) -> 0 | CG12: =IF(AND(BN$6+BQ$6+BT$6<SUM(BD$11:BD12),BN$6+BQ$6+BT$6+BN$5+BQ$5+BT$5<SUM(BD$11:BD12),BN$6+BQ$6+BT$6+BN$5+BQ$5+BT$5+BN$4+BQ$4+BT$4>SUM(BD$11:BD12),CA12=0,CD12=0),1,0) -> 0 | CH12: =SUM(BB$11:BB12) -> 0.4449851162 | CI12: =SUM(BC$11:BC12) -> 0.02586280626 | CJ12: =SUM(BD$11:BD12) -> 0.021871341
A13: Fleet #3 | B13: Ship 3 | C13: Operator #3 | D13: IMO #3 | E13: SuezMax | F13: Steam | G13: 2014 | H13: PAL | L13: TG | M13: 4 | N13: 2022-01-02T09:32:00 | O13: 2022-01-03T11:54:00 | S13: 2022-01-02T11:32:00 | T13: 2022-01-03T10:54:00 | U13: None | X13: 26.36666667 | Y13: 18.66666667 | Z13: 23.36666667 | AC13: 689 | AD13: 8170 | AE13: 875 | AF13: 217 | AG13: 300 | AH13: 3.493620433 | AI13: 46.98575 | AJ13: =+$AH13/0.27*'EFs & LFs'!$I$9/1000 -> 0.1785628221 | AK13: =+$AH13/0.27*'EFs & LFs'!$J$9/1000 -> 0.00219968694 | AL13: =+$AH13/0.27*'EFs & LFs'!$K$9/1000 -> 0.006728454168 | AM13: =+$AI13/0.27*'EFs & LFs'!$I$10/1000 -> 0.3480425926 | AN13: =+$AI13/0.27*'EFs & LFs'!$J$10/1000 -> 0.02958362037 | AO13: =+$AI13/0.27*'EFs & LFs'!$K$10/1000 -> 0.01914234259 | AP13: 0.5266054148 | AQ13: 0.03178330731 | AR13: 0.02587079676 | AS13: 0.03623013783 | AT13: 0.0003881800481 | AU13: 0.001293933494 | AV13: 0.06960851852 | AW13: 0.005220638889 | AX13: 0.003480425926 | AY13: 0.1058386563 | AZ13: 0.005608818937 | BA13: 0.00477435942 | BB13: 0.4207667584 | BC13: 0.02617448837 | BD13: 0.02109643734 | BE13: 408.1142481 | BF13: 9.877962705 | BG13: 58.39703222 | BH13: Y | BI13: =IF(AND(BL12=0,BO12=0,BR12=0),"NONE",((BL12>0)*BL$1+(AND(BL12=0,BO12>0))*BO$1+(AND(BL12=0,BO12=0,BR12>0))*BR$1)&IF(AND(BL12<BB13,BL12>0,BO12>0),","&BO$1,IF(AND(BL12+BO12<BB13,BL12+BO12>0),","&BR$1,IF(AND(BL12=0,BO12=0,BR12>0,BR12<BB13),","&BL$1,"")))) -> 1 | BJ13: =IF(AND(BM12=0,BP12=0,BS12=0),"NONE",((BM12>0)*BM$1+(AND(BM12=0,BP12>0))*BP$1+(AND(BM12=0,BP12=0,BS12>0))*BS$1)&IF(AND(BM12<BC13,BM12>0,BP12>0),","&BP$1,IF(AND(BM12+BP12<BC13,BM12+BP12>0),","&BS$1,IF(AND(BM12=0,BP12=0,BS12>0,BS12<BC13),","&BM$1,"")))) -> 1 | BK13: =IF(AND(BN12=0,BQ12=0,BT12=0),"NONE",((BN12>0)*BN$1+(AND(BN12=0,BQ12>0))*BQ$1+(AND(BN12=0,BQ12=0,BT12>0))*BT$1)&IF(AND(BN12<BD13,BN12>0,BQ12>0),","&BQ$1,IF(AND(BN12+BQ12<BD13,BN12+BQ12>0),","&BT$1,IF(AND(BN12=0,BQ12=0,BT12>0,BT12<BD13),","&BN$1,"")))) -> 1 | BL13: 28.47424813 | BM13: 0.6379627054 | BN13: 1.877032222 | BO13: 63 | BP13: =IF(BM13-BC13>0,BP12,MAX(BP12-IF(AND(BM12<BC13,BM12>0),$BC13-BM12,$BC13),0))+AND($CC13=1,$CC12=0)*BP$5+AND($CF13=1,$CF12=0)*BP$4 -> 0 | BQ13: 1.5 | BR13: 27.6 | BS13: 1.5 | BT13: 9.7 | BY13: =IF(BL$6+BO$6+BR$6>SUM(BB$11:BB13),1,0) -> 1 | BZ13: =IF(BM$6+BP$6+BS$6>SUM(BC$11:BC13),1,0) -> 1 | CA13: =IF(BN$6+BQ$6+BT$6>SUM(BD$11:BD13),1,0) -> 1 | CB13: =IF(AND(BL$6+BO$6+BR$6<SUM(BB$11:BB13),BL$6+BO$6+BR$6+BL$5+BO$5+BR$5>SUM(BB$11:BB13),BY13=0),1,0) -> 0 | CC13: =IF(AND(BM$6+BP$6+BS$6<SUM(BC$11:BC13),BM$6+BP$6+BS$6+BM$5+BP$5+BS$5>SUM(BC$11:BC13),BZ13=0),1,0) -> 0 | CD13: =IF(AND(BN$6+BQ$6+BT$6<SUM(BD$11:BD13),BN$6+BQ$6+BT$6+BN$5+BQ$5+BT$5>SUM(BD$11:BD13),CA13=0),1,0) -> 0 | CE13: =IF(AND(BL$6+BO$6+BR$6<SUM(BB$11:BB13),BL$6+BO$6+BR$6+BL$5+BO$5+BR$5<SUM(BB$11:BB13),BL$6+BO$6+BR$6+BL$5+BO$5+BR$5+BL$4+BO$4+BR$4>SUM(BB$11:BB13),BY13=0,CB13=0),1,0) -> 0 | CF13: =IF(AND(BM$6+BP$6+BS$6<SUM(BC$11:BC13),BM$6+BP$6+BS$6+BM$5+BP$5+BS$5<SUM(BC$11:BC13),BM$6+BP$6+BS$6+BM$5+BP$5+BS$5+BM$4+BP$4+BS$4>SUM(BC$11:BC13),BZ13=0,CC13=0),1,0) -> 0 | CG13: =IF(AND(BN$6+BQ$6+BT$6<SUM(BD$11:BD13),BN$6+BQ$6+BT$6+BN$5+BQ$5+BT$5<SUM(BD$11:BD13),BN$6+BQ$6+BT$6+BN$5+BQ$5+BT$5+BN$4+BQ$4+BT$4>SUM(BD$11:BD13),CA13=0,CD13=0),1,0) -> 0 | CH13: =SUM(BB$11:BB13) -> 0.8657518746 | CI13: =SUM(BC$11:BC13) -> 0.05203729463 | CJ13: =SUM(BD$11:BD13) -> 0.04296777834
A14: Fleet #4 | B14: Ship 4 | C14: Operator #4 | D14: IMO #4 | E14: Product | F14: Diesel | G14: 2015 | H14: Aux | L14: 2 | M14: 3 | N14: 2022-01-03T14:20:00 | O14: 2022-01-04T13:56:00 | S14: 2022-01-03T16:20:00 | T14: 2022-01-04T12:56:00 | U14: None | X14: 23.6 | Y14: 8.333333333 | Z14: 20.6 | AC14: 1050 | AD14: 3089 | AE14: 875 | AF14: 217 | AG14: 300 | AH14: 4.69371 | AI14: 10.9425 | AJ14: =+$AH14/0.27*'EFs & LFs'!$I$9/1000 -> 0.2399007333 | AK14: =+$AH14/0.27*'EFs & LFs'!$J$9/1000 -> 0.002955298889 | AL14: =+$AH14/0.27*'EFs & LFs'!$K$9/1000 -> 0.009039737778 | AM14: =+$AI14/0.27*'EFs & LFs'!$I$10/1000 -> 0.08105555555 | AN14: =+$AI14/0.27*'EFs & LFs'!$J$10/1000 -> 0.006889722222 | AO14: =+$AI14/0.27*'EFs & LFs'!$K$10/1000 -> 0.004458055555 | AP14: 0.3209562889 | AQ14: 0.009845021111 | AR14: 0.01349779333 | AS14: 0.04867551111 | AT14: 0.0005215233333 | AU14: 0.001738411111 | AV14: 0.01621111111 | AW14: 0.001215833333 | AX14: 0.0008105555555 | AY14: 0.06488662222 | AZ14: 0.001737356667 | BA14: 0.002548966667 | BB14: 0.2560696667 | BC14: 0.008107664444 | BD14: 0.01094882667 | BE14: 407.8581785 | BF14: 9.869855041 | BG14: 58.38608339 | BH14: Y | BI14: 1 | BJ14: 1 | BK14: 1 | BL14: 28.21817846 | BM14: 0.6298550409 | BN14: 1.866083395 | BO14: 63 | BP14: 0 | BQ14: 1.5 | BR14: 27.6 | BS14: 1.5 | BT14: 9.7 | BY14: =IF(BL$6+BO$6+BR$6>SUM(BB$11:BB14),1,0) -> 1 | BZ14: =IF(BM$6+BP$6+BS$6>SUM(BC$11:BC14),1,0) -> 1 | CA14: =IF(BN$6+BQ$6+BT$6>SUM(BD$11:BD14),1,0) -> 1 | CB14: =IF(AND(BL$6+BO$6+BR$6<SUM(BB$11:BB14),BL$6+BO$6+BR$6+BL$5+BO$5+BR$5>SUM(BB$11:BB14),BY14=0),1,0) -> 0 | CC14: =IF(AND(BM$6+BP$6+BS$6<SUM(BC$11:BC14),BM$6+BP$6+BS$6+BM$5+BP$5+BS$5>SUM(BC$11:BC14),BZ14=0),1,0) -> 0 | CD14: =IF(AND(BN$6+BQ$6+BT$6<SUM(BD$11:BD14),BN$6+BQ$6+BT$6+BN$5+BQ$5+BT$5>SUM(BD$11:BD14),CA14=0),1,0) -> 0 | CE14: =IF(AND(BL$6+BO$6+BR$6<SUM(BB$11:BB14),BL$6+BO$6+BR$6+BL$5+BO$5+BR$5<SUM(BB$11:BB14),BL$6+BO$6+BR$6+BL$5+BO$5+BR$5+BL$4+BO$4+BR$4>SUM(BB$11:BB14),BY14=0,CB14=0),1,0) -> 0 | CF14: =IF(AND(BM$6+BP$6+BS$6<SUM(BC$11:BC14),BM$6+BP$6+BS$6+BM$5+BP$5+BS$5<SUM(BC$11:BC14),BM$6+BP$6+BS$6+BM$5+BP$5+BS$5+BM$4+BP$4+BS$4>SUM(BC$11:BC14),BZ14=0,CC14=0),1,0) -> 0 | CG14: =IF(AND(BN$6+BQ$6+BT$6<SUM(BD$11:BD14),BN$6+BQ$6+BT$6+BN$5+BQ$5+BT$5<SUM(BD$11:BD14),BN$6+BQ$6+BT$6+BN$5+BQ$5+BT$5+BN$4+BQ$4+BT$4>SUM(BD$11:BD14),CA14=0,CD14=0),1,0) -> 0 | CH14: =SUM(BB$11:BB14) -> 1.121821541 | CI14: =SUM(BC$11:BC14) -> 0.06014495908 | CJ14: =SUM(BD$11:BD14) -> 0.05391660501
A15: Fleet #5 | B15: Ship 5 | C15: Operator #5 | D15: IMO #5 | E15: AfraMax | F15: Steam | G15: 2019 | H15: Aux | L15: 3 | M15: 1 | N15: 2022-01-03T20:59:00 | O15: 2022-01-10T06:40:00 | S15: 2022-01-03T22:59:00 | T15: 2022-01-10T05:40:00 | U15: None | X15: 153.6833333 | Y15: 10.25 | Z15: 150.6833333 | AC15: 986 | AD15: 4976 | AE15: 875 | AF15: 217 | AG15: 300 | AH15: 32.24050737 | AI15: 52.16495 | AJ15: =+$AH15/0.27*'EFs & LFs'!$I$9/1000 -> 1.647848154 | AK15: =+$AH15/0.27*'EFs & LFs'!$J$9/1000 -> 0.02029957871 | AL15: =+$AH15/0.27*'EFs & LFs'!$K$9/1000 -> 0.062092829 | AM15: =+$AI15/0.27*'EFs & LFs'!$I$10/1000 -> 0.386407037 | AN15: =+$AI15/0.27*'EFs & LFs'!$J$10/1000 -> 0.03284459815 | AO15: =+$AI15/0.27*'EFs & LFs'!$K$10/1000 -> 0.02125238704 | AP15: 2.034255191 | AQ15: 0.05314417686 | AR15: 0.08334521604 | AS15: 0.3343460023 | AT15: 0.003582278596 | AU15: 0.01194092865 | AV15: 0.07728140741 | AW15: 0.005796105555 | AX15: 0.00386407037 | AY15: 0.4116274097 | AZ15: 0.009378384152 | BA15: 0.01580499902 | BB15: 1.622627782 | BC15: 0.04376579271 | BD15: 0.06754021701 | BE15: 406.2355507 | BF15: 9.826089248 | BG15: 58.31854318 | BH15: Y | BI15: 1 | BJ15: 1 | BK15: 1 | BL15: 26.59555068 | BM15: 0.5860892482 | BN15: 1.798543178 | BO15: 63 | BP15: 0 | BQ15: 1.5 | BR15: 27.6 | BS15: 1.5 | BT15: 9.7 | BY15: =IF(BL$6+BO$6+BR$6>SUM(BB$11:BB15),1,0) -> 1 | BZ15: =IF(BM$6+BP$6+BS$6>SUM(BC$11:BC15),1,0) -> 1 | CA15: =IF(BN$6+BQ$6+BT$6>SUM(BD$11:BD15),1,0) -> 1 | CB15: =IF(AND(BL$6+BO$6+BR$6<SUM(BB$11:BB15),BL$6+BO$6+BR$6+BL$5+BO$5+BR$5>SUM(BB$11:BB15),BY15=0),1,0) -> 0 | CC15: =IF(AND(BM$6+BP$6+BS$6<SUM(BC$11:BC15),BM$6+BP$6+BS$6+BM$5+BP$5+BS$5>SUM(BC$11:BC15),BZ15=0),1,0) -> 0 | CD15: =IF(AND(BN$6+BQ$6+BT$6<SUM(BD$11:BD15),BN$6+BQ$6+BT$6+BN$5+BQ$5+BT$5>SUM(BD$11:BD15),CA15=0),1,0) -> 0 | CE15: =IF(AND(BL$6+BO$6+BR$6<SUM(BB$11:BB15),BL$6+BO$6+BR$6+BL$5+BO$5+BR$5<SUM(BB$11:BB15),BL$6+BO$6+BR$6+BL$5+BO$5+BR$5+BL$4+BO$4+BR$4>SUM(BB$11:BB15),BY15=0,CB15=0),1,0) -> 0 | CF15: =IF(AND(BM$6+BP$6+BS$6<SUM(BC$11:BC15),BM$6+BP$6+BS$6+BM$5+BP$5+BS$5<SUM(BC$11:BC15),BM$6+BP$6+BS$6+BM$5+BP$5+BS$5+BM$4+BP$4+BS$4>SUM(BC$11:BC15),BZ15=0,CC15=0),1,0) -> 0 | CG15: =IF(AND(BN$6+BQ$6+BT$6<SUM(BD$11:BD15),BN$6+BQ$6+BT$6+BN$5+BQ$5+BT$5<SUM(BD$11:BD15),BN$6+BQ$6+BT$6+BN$5+BQ$5+BT$5+BN$4+BQ$4+BT$4>SUM(BD$11:BD15),CA15=0,CD15=0),1,0) -> 0 | CH15: =SUM(BB$11:BB15) -> 2.744449323 | CI15: =SUM(BC$11:BC15) -> 0.1039107518 | CJ15: =SUM(BD$11:BD15) -> 0.121456822
A16: Fleet #6 | B16: Ship 6 | C16: Operator #6 | D16: IMO #6 | E16: Product | F16: Diesel | G16: 2019 | H16: Aux | L16: 3 | M16: 2 | N16: 2022-01-04T13:10:00 | O16: 2022-01-06T10:40:00 | S16: 2022-01-04T15:10:00 | T16: 2022-01-06T09:40:00 | U16: None | X16: 45.5 | Y16: 0 | Z16: 42.5 | AC16: 1050 | AD16: 3089 | AE16: 875 | AF16: 217 | AG16: 300 | AH16: 9.683625 | AI16: 11.15625 | AJ16: =+$AH16/0.27*'EFs & LFs'!$I$9/1000 -> 0.4949408333 | AK16: =+$AH16/0.27*'EFs & LFs'!$J$9/1000 -> 0.006097097222 | AL16: =+$AH16/0.27*'EFs & LFs'!$K$9/1000 -> 0.01864994444 | AM16: =+$AI16/0.27*'EFs & LFs'!$I$10/1000 -> 0.08263888889 | AN16: =+$AI16/0.27*'EFs & LFs'!$J$10/1000 -> 0.007024305556 | AO16: =+$AI16/0.27*'EFs & LFs'!$K$10/1000 -> 0.004545138889 | AP16: 0.5775797222 | AQ16: 0.01312140278 | AR16: 0.02319508333 | AS16: 0.1004227778 | AT16: 0.001075958333 | AU16: 0.003586527778 | AV16: 0.01652777778 | AW16: 0.001239583333 | AX16: 0.0008263888889 | AY16: 0.1169505556 | AZ16: 0.002315541667 | BA16: 0.004412916667 | BB16: 0.4606291667 | BC16: 0.01080586111 | BD16: 0.01878216667 | BE16: 405.7749215 | BF16: 9.815283387 | BG16: 58.29976101 | BH16: Y | BI16: 1 | BJ16: 1 | BK16: 1 | BL16: 26.13492151 | BM16: 0.5752833871 | BN16: 1.779761011 | BO16: 63 | BP16: 0 | BQ16: 1.5 | BR16: 27.6 | BS16: 1.5 | BT16: 9.7 | BY16: =IF(BL$6+BO$6+BR$6>SUM(BB$11:BB16),1,0) -> 1 | BZ16: =IF(BM$6+BP$6+BS$6>SUM(BC$11:BC16),1,0) -> 1 | CA16: =IF(BN$6+BQ$6+BT$6>SUM(BD$11:BD16),1,0) -> 1 | CB16: =IF(AND(BL$6+BO$6+BR$6<SUM(BB$11:BB16),BL$6+BO$6+BR$6+BL$5+BO$5+BR$5>SUM(BB$11:BB16),BY16=0),1,0) -> 0 | CC16: =IF(AND(BM$6+BP$6+BS$6<SUM(BC$11:BC16),BM$6+BP$6+BS$6+BM$5+BP$5+BS$5>SUM(BC$11:BC16),BZ16=0),1,0) -> 0 | CD16: =IF(AND(BN$6+BQ$6+BT$6<SUM(BD$11:BD16),BN$6+BQ$6+BT$6+BN$5+BQ$5+BT$5>SUM(BD$11:BD16),CA16=0),1,0) -> 0 | CE16: =IF(AND(BL$6+BO$6+BR$6<SUM(BB$11:BB16),BL$6+BO$6+BR$6+BL$5+BO$5+BR$5<SUM(BB$11:BB16),BL$6+BO$6+BR$6+BL$5+BO$5+BR$5+BL$4+BO$4+BR$4>SUM(BB$11:BB16),BY16=0,CB16=0),1,0) -> 0 | CF16: =IF(AND(BM$6+BP$6+BS$6<SUM(BC$11:BC16),BM$6+BP$6+BS$6+BM$5+BP$5+BS$5<SUM(BC$11:BC16),BM$6+BP$6+BS$6+BM$5+BP$5+BS$5+BM$4+BP$4+BS$4>SUM(BC$11:BC16),BZ16=0,CC16=0),1,0) -> 0 | CG16: =IF(AND(BN$6+BQ$6+BT$6<SUM(BD$11:BD16),BN$6+BQ$6+BT$6+BN$5+BQ$5+BT$5<SUM(BD$11:BD16),BN$6+BQ$6+BT$6+BN$5+BQ$5+BT$5+BN$4+BQ$4+BT$4>SUM(BD$11:BD16),CA16=0,CD16=0),1,0) -> 0 | CH16: =SUM(BB$11:BB16) -> 3.20507849 | CI16: =SUM(BC$11:BC16) -> 0.1147166129 | CJ16: =SUM(BD$11:BD16) -> 0.1402389887
A17: Fleet #7 | B17: Ship 7 | C17: Operator #7 | D17: IMO #7 | E17: SuezMax | F17: Steam | G17: 2014 | H17: PAL | L17: TG | M17: 4 | N17: 2022-01-06T02:40:00 | O17: 2022-01-07T11:40:00 | S17: 2022-01-06T04:40:00 | T17: 2022-01-07T10:40:00 | U17: None | X17: 33 | Y17: 23.08333333 | Z17: 30 | AC17: 689 | AD17: 8170 | AE17: 875 | AF17: 217 | AG17: 300 | AH17: 4.48539 | AI17: 58.392875 | AJ17: =+$AH17/0.27*'EFs & LFs'!$I$9/1000 -> 0.2292532667 | AK17: =+$AH17/0.27*'EFs & LFs'!$J$9/1000 -> 0.002824134444 | AL17: =+$AH17/0.27*'EFs & LFs'!$K$9/1000 -> 0.008638528889 | AM17: =+$AI17/0.27*'EFs & LFs'!$I$10/1000 -> 0.4325398148 | AN17: =+$AI17/0.27*'EFs & LFs'!$J$10/1000 -> 0.03676588426 | AO17: =+$AI17/0.27*'EFs & LFs'!$K$10/1000 -> 0.02378968982 | AP17: 0.6617930815 | AQ17: 0.03959001871 | AR17: 0.0324282187 | AS17: 0.04651515556 | AT17: 0.0004983766667 | AU17: 0.001661255556 | AV17: 0.08650796297 | AW17: 0.006488097222 | AX17: 0.004325398148 | AY17: 0.1330231185 | AZ17: 0.006986473889 | BA17: 0.005986653704 | BB17: 0.528769963 | BC17: 0.03260354482 | BD17: 0.026441565 | BE17: 405.2461515 | BF17: 9.782679842 | BG17: 58.27331945 | BH17: Y | BI17: 1 | BJ17: 1 | BK17: 1 | BL17: 25.60615155 | BM17: 0.5426798423 | BN17: 1.753319446 | BO17: 63 | BP17: 0 | BQ17: 1.5 | BR17: 27.6 | BS17: 1.5 | BT17: 9.7 | BY17: =IF(BL$6+BO$6+BR$6>SUM(BB$11:BB17),1,0) -> 1 | BZ17: =IF(BM$6+BP$6+BS$6>SUM(BC$11:BC17),1,0) -> 1 | CA17: =IF(BN$6+BQ$6+BT$6>SUM(BD$11:BD17),1,0) -> 1 | CB17: =IF(AND(BL$6+BO$6+BR$6<SUM(BB$11:BB17),BL$6+BO$6+BR$6+BL$5+BO$5+BR$5>SUM(BB$11:BB17),BY17=0),1,0) -> 0 | CC17: =IF(AND(BM$6+BP$6+BS$6<SUM(BC$11:BC17),BM$6+BP$6+BS$6+BM$5+BP$5+BS$5>SUM(BC$11:BC17),BZ17=0),1,0) -> 0 | CD17: =IF(AND(BN$6+BQ$6+BT$6<SUM(BD$11:BD17),BN$6+BQ$6+BT$6+BN$5+BQ$5+BT$5>SUM(BD$11:BD17),CA17=0),1,0) -> 0 | CE17: =IF(AND(BL$6+BO$6+BR$6<SUM(BB$11:BB17),BL$6+BO$6+BR$6+BL$5+BO$5+BR$5<SUM(BB$11:BB17),BL$6+BO$6+BR$6+BL$5+BO$5+BR$5+BL$4+BO$4+BR$4>SUM(BB$11:BB17),BY17=0,CB17=0),1,0) -> 0 | CF17: =IF(AND(BM$6+BP$6+BS$6<SUM(BC$11:BC17),BM$6+BP$6+BS$6+BM$5+BP$5+BS$5<SUM(BC$11:BC17),BM$6+BP$6+BS$6+BM$5+BP$5+BS$5+BM$4+BP$4+BS$4>SUM(BC$11:BC17),BZ17=0,CC17=0),1,0) -> 0 | CG17: =IF(AND(BN$6+BQ$6+BT$6<SUM(BD$11:BD17),BN$6+BQ$6+BT$6+BN$5+BQ$5+BT$5<SUM(BD$11:BD17),BN$6+BQ$6+BT$6+BN$5+BQ$5+BT$5+BN$4+BQ$4+BT$4>SUM(BD$11:BD17),CA17=0,CD17=0),1,0) -> 0 | CH17: =SUM(BB$11:BB17) -> 3.733848453 | CI17: =SUM(BC$11:BC17) -> 0.1473201577 | CJ17: =SUM(BD$11:BD17) -> 0.1666805537
A18: Fleet #8 | B18: Ship 8 | C18: Operator #8 | D18: IMO #8 | E18: Product | F18: Diesel | G18: 2015 | H18: Aux | L18: 2 | M18: 2 | N18: 2022-01-06T12:25:00 | O18: 2022-01-09T01:02:00 | S18: 2022-01-06T14:25:00 | T18: 2022-01-09T00:02:00 | U18: None | X18: 60.61666667 | Y18: 0 | Z18: 57.61666667 | AC18: 1050 | AD18: 3089 | AE18: 875 | AF18: 217 | AG18: 300 | AH18: 13.1279575 | AI18: 15.124375 | AJ18: =+$AH18/0.27*'EFs & LFs'!$I$9/1000 -> 0.6709844944 | AK18: =+$AH18/0.27*'EFs & LFs'!$J$9/1000 -> 0.008265751019 | AL18: =+$AH18/0.27*'EFs & LFs'!$K$9/1000 -> 0.0252834737 | AM18: =+$AI18/0.27*'EFs & LFs'!$I$10/1000 -> 0.1120324074 | AN18: =+$AI18/0.27*'EFs & LFs'!$J$10/1000 -> 0.00952275463 | AO18: =+$AI18/0.27*'EFs & LFs'!$K$10/1000 -> 0.006161782407 | AP18: 0.7830169019 | AQ18: 0.01778850565 | AR18: 0.03144525611 | AS18: 0.1361417815 | AT18: 0.001458661944 | AU18: 0.004862206481 | AV18: 0.02240648148 | AW18: 0.001680486111 | AX18: 0.001120324074 | AY18: 0.158548263 | AZ18: 0.003139148056 | BA18: 0.005982530556 | BB18: 0.6244686389 | BC18: 0.01464935759 | BD18: 0.02546272556 | BE18: 404.6216829 | BF18: 9.768030485 | BG18: 58.24785672 | BH18: Y | BI18: 1 | BJ18: 1 | BK18: 1 | BL18: 24.98168291 | BM18: 0.5280304847 | BN18: 1.727856721 | BO18: 63 | BP18: 0 | BQ18: 1.5 | BR18: 27.6 | BS18: 1.5 | BT18: 9.7 | BY18: =IF(BL$6+BO$6+BR$6>SUM(BB$11:BB18),1,0) -> 1 | BZ18: =IF(BM$6+BP$6+BS$6>SUM(BC$11:BC18),1,0) -> 1 | CA18: =IF(BN$6+BQ$6+BT$6>SUM(BD$11:BD18),1,0) -> 1 | CB18: =IF(AND(BL$6+BO$6+BR$6<SUM(BB$11:BB18),BL$6+BO$6+BR$6+BL$5+BO$5+BR$5>SUM(BB$11:BB18),BY18=0),1,0) -> 0 | CC18: =IF(AND(BM$6+BP$6+BS$6<SUM(BC$11:BC18),BM$6+BP$6+BS$6+BM$5+BP$5+BS$5>SUM(BC$11:BC18),BZ18=0),1,0) -> 0 | CD18: =IF(AND(BN$6+BQ$6+BT$6<SUM(BD$11:BD18),BN$6+BQ$6+BT$6+BN$5+BQ$5+BT$5>SUM(BD$11:BD18),CA18=0),1,0) -> 0 | CE18: =IF(AND(BL$6+BO$6+BR$6<SUM(BB$11:BB18),BL$6+BO$6+BR$6+BL$5+BO$5+BR$5<SUM(BB$11:BB18),BL$6+BO$6+BR$6+BL$5+BO$5+BR$5+BL$4+BO$4+BR$4>SUM(BB$11:BB18),BY18=0,CB18=0),1,0) -> 0 | CF18: =IF(AND(BM$6+BP$6+BS$6<SUM(BC$11:BC18),BM$6+BP$6+BS$6+BM$5+BP$5+BS$5<SUM(BC$11:BC18),BM$6+BP$6+BS$6+BM$5+BP$5+BS$5+BM$4+BP$4+BS$4>SUM(BC$11:BC18),BZ18=0,CC18=0),1,0) -> 0 | CG18: =IF(AND(BN$6+BQ$6+BT$6<SUM(BD$11:BD18),BN$6+BQ$6+BT$6+BN$5+BQ$5+BT$5<SUM(BD$11:BD18),BN$6+BQ$6+BT$6+BN$5+BQ$5+BT$5+BN$4+BQ$4+BT$4>SUM(BD$11:BD18),CA18=0,CD18=0),1,0) -> 0 | CH18: =SUM(BB$11:BB18) -> 4.358317091 | CI18: =SUM(BC$11:BC18) -> 0.1619695153 | CJ18: =SUM(BD$11:BD18) -> 0.1921432792
A19: Fleet #9 | B19: Ship 9 | C19: Operator #9 | D19: IMO #9 | E19: Product | F19: Steam | G19: 1997 | H19: Aux | L19: 0 | M19: 3 | N19: 2022-01-07T15:50:00 | O19: 2022-01-10T00:18:00 | S19: 2022-01-07T17:50:00 | T19: 2022-01-09T23:18:00 | U19: None | X19: 56.46666667 | Y19: 44.66666667 | Z19: 53.46666667 | AC19: 1050 | AD19: 3089 | AE19: 875 | AF19: 217 | AG19: 300 | AH19: 12.18238 | AI19: 43.7026 | AJ19: =+$AH19/0.27*'EFs & LFs'!$I$9/1000 -> 0.6226549778 | AK19: =+$AH19/0.27*'EFs & LFs'!$J$9/1000 -> 0.007670387407 | AL19: =+$AH19/0.27*'EFs & LFs'!$K$9/1000 -> 0.02346236148 | AM19: =+$AI19/0.27*'EFs & LFs'!$I$10/1000 -> 0.323722963 | AN19: =+$AI19/0.27*'EFs & LFs'!$J$10/1000 -> 0.02751645185 | AO19: =+$AI19/0.27*'EFs & LFs'!$K$10/1000 -> 0.01780476296 | AP19: 0.9463779407 | AQ19: 0.03518683926 | AR19: 0.04126712444 | AS19: 0.1263357926 | AT19: 0.001353597778 | AU19: 0.004511992593 | AV19: 0.06474459259 | AW19: 0.004855844444 | AX19: 0.00323722963 | AY19: 0.1910803852 | AZ19: 0.006209442222 | BA19: 0.007749222222 | BB19: 0.7552975556 | BC19: 0.02897739704 | BD19: 0.03351790222 | BE19: 403.8663854 | BF19: 9.739053088 | BG19: 58.21433882 | BH19: Y | BI19: 1 | BJ19: 1 | BK19: 1 | BL19: 24.22638535 | BM19: 0.4990530877 | BN19: 1.694338819 | BO19: 63 | BP19: 0 | BQ19: 1.5 | BR19: 27.6 | BS19: 1.5 | BT19: 9.7 | BY19: =IF(BL$6+BO$6+BR$6>SUM(BB$11:BB19),1,0) -> 1 | BZ19: =IF(BM$6+BP$6+BS$6>SUM(BC$11:BC19),1,0) -> 1 | CA19: =IF(BN$6+BQ$6+BT$6>SUM(BD$11:BD19),1,0) -> 1 | CB19: =IF(AND(BL$6+BO$6+BR$6<SUM(BB$11:BB19),BL$6+BO$6+BR$6+BL$5+BO$5+BR$5>SUM(BB$11:BB19),BY19=0),1,0) -> 0 | CC19: =IF(AND(BM$6+BP$6+BS$6<SUM(BC$11:BC19),BM$6+BP$6+BS$6+BM$5+BP$5+BS$5>SUM(BC$11:BC19),BZ19=0),1,0) -> 0 | CD19: =IF(AND(BN$6+BQ$6+BT$6<SUM(BD$11:BD19),BN$6+BQ$6+BT$6+BN$5+BQ$5+BT$5>SUM(BD$11:BD19),CA19=0),1,0) -> 0 | CE19: =IF(AND(BL$6+BO$6+BR$6<SUM(BB$11:BB19),BL$6+BO$6+BR$6+BL$5+BO$5+BR$5<SUM(BB$11:BB19),BL$6+BO$6+BR$6+BL$5+BO$5+BR$5+BL$4+BO$4+BR$4>SUM(BB$11:BB19),BY19=0,CB19=0),1,0) -> 0 | CF19: =IF(AND(BM$6+BP$6+BS$6<SUM(BC$11:BC19),BM$6+BP$6+BS$6+BM$5+BP$5+BS$5<SUM(BC$11:BC19),BM$6+BP$6+BS$6+BM$5+BP$5+BS$5+BM$4+BP$4+BS$4>SUM(BC$11:BC19),BZ19=0,CC19=0),1,0) -> 0 | CG19: =IF(AND(BN$6+BQ$6+BT$6<SUM(BD$11:BD19),BN$6+BQ$6+BT$6+BN$5+BQ$5+BT$5<SUM(BD$11:BD19),BN$6+BQ$6+BT$6+BN$5+BQ$5+BT$5+BN$4+BQ$4+BT$4>SUM(BD$11:BD19),CA19=0,CD19=0),1,0) -> 0 | CH19: =SUM(BB$11:BB19) -> 5.113614647 | CI19: =SUM(BC$11:BC19) -> 0.1909469123 | CJ19: =SUM(BD$11:BD19) -> 0.2256611815
A20: Fleet #10 | B20: Ship 10 | C20: Operator #10 | D20: IMO #10 | E20: Product | F20: Diesel | G20: 2013 | H20: Aux | L20: 2 | M20: 2 | N20: 2022-01-09T05:42:00 | O20: 2022-01-11T10:13:00 | S20: 2022-01-09T07:42:00 | T20: 2022-01-11T09:13:00 | U20: None | X20: 52.51666667 | Y20: 0 | Z20: 49.51666667 | AC20: 1050 | AD20: 3089 | AE20: 875 | AF20: 217 | AG20: 300 | AH20: 11.2823725 | AI20: 12.998125 | AJ20: =+$AH20/0.27*'EFs & LFs'!$I$9/1000 -> 0.5766545944 | AK20: =+$AH20/0.27*'EFs & LFs'!$J$9/1000 -> 0.007103716019 | AL20: =+$AH20/0.27*'EFs & LFs'!$K$9/1000 -> 0.0217290137 | AM20: =+$AI20/0.27*'EFs & LFs'!$I$10/1000 -> 0.09628240741 | AN20: =+$AI20/0.27*'EFs & LFs'!$J$10/1000 -> 0.00818400463 | AO20: =+$AI20/0.27*'EFs & LFs'!$K$10/1000 -> 0.005295532407 | AP20: 0.6729370019 | AQ20: 0.01528772065 | AR20: 0.02702454611 | AS20: 0.1170023815 | AT20: 0.001253596944 | AU20: 0.004178656481 | AV20: 0.01925648148 | AW20: 0.001444236111 | AX20: 0.0009628240741 | AY20: 0.136258863 | AZ20: 0.002697833056 | BA20: 0.005141480556 | BB20: 0.5366781389 | BC20: 0.01258988759 | BD20: 0.02188306556 | BE20: 403.3297072 | BF20: 9.7264632 | BG20: 58.19245575 | BH20: Y | BI20: 1 | BJ20: 1 | BK20: 1 | BL20: 23.68970721 | BM20: 0.4864632001 | BN20: 1.672455753 | BO20: 63 | BP20: 0 | BQ20: 1.5 | BR20: 27.6 | BS20: 1.5 | BT20: 9.7 | BY20: =IF(BL$6+BO$6+BR$6>SUM(BB$11:BB20),1,0) -> 1 | BZ20: =IF(BM$6+BP$6+BS$6>SUM(BC$11:BC20),1,0) -> 1 | CA20: =IF(BN$6+BQ$6+BT$6>SUM(BD$11:BD20),1,0) -> 1 | CB20: =IF(AND(BL$6+BO$6+BR$6<SUM(BB$11:BB20),BL$6+BO$6+BR$6+BL$5+BO$5+BR$5>SUM(BB$11:BB20),BY20=0),1,0) -> 0 | CC20: =IF(AND(BM$6+BP$6+BS$6<SUM(BC$11:BC20),BM$6+BP$6+BS$6+BM$5+BP$5+BS$5>SUM(BC$11:BC20),BZ20=0),1,0) -> 0 | CD20: =IF(AND(BN$6+BQ$6+BT$6<SUM(BD$11:BD20),BN$6+BQ$6+BT$6+BN$5+BQ$5+BT$5>SUM(BD$11:BD20),CA20=0),1,0) -> 0 | CE20: =IF(AND(BL$6+BO$6+BR$6<SUM(BB$11:BB20),BL$6+BO$6+BR$6+BL$5+BO$5+BR$5<SUM(BB$11:BB20),BL$6+BO$6+BR$6+BL$5+BO$5+BR$5+BL$4+BO$4+BR$4>SUM(BB$11:BB20),BY20=0,CB20=0),1,0) -> 0 | CF20: =IF(AND(BM$6+BP$6+BS$6<SUM(BC$11:BC20),BM$6+BP$6+BS$6+BM$5+BP$5+BS$5<SUM(BC$11:BC20),BM$6+BP$6+BS$6+BM$5+BP$5+BS$5+BM$4+BP$4+BS$4>SUM(BC$11:BC20),BZ20=0,CC20=0),1,0) -> 0 | CG20: =IF(AND(BN$6+BQ$6+BT$6<SUM(BD$11:BD20),BN$6+BQ$6+BT$6+BN$5+BQ$5+BT$5<SUM(BD$11:BD20),BN$6+BQ$6+BT$6+BN$5+BQ$5+BT$5+BN$4+BQ$4+BT$4>SUM(BD$11:BD20),CA20=0,CD20=0),1,0) -> 0 | CH20: =SUM(BB$11:BB20) -> 5.650292786 | CI20: =SUM(BC$11:BC20) -> 0.2035367999 | CJ20: =SUM(BD$11:BD20) -> 0.247544247
AP22: =SUM(AP11:AP20) -> 7.080547673 | AQ22: =SUM(AQ11:AQ20) -> 0.2471518285 | AR22: =SUM(AR11:AR20) -> 0.3049116385 | AY22: =SUM(AY11:AY20) -> 1.430254888 | AZ22: 0.04361502856 | BA22: 0.05736739149 | BB22: 5.650292786 | BC22: 0.2035367999 | BD22: 0.247544247 | BJ22: Remaining Credits at EOY | BK22: Banked Credits Pre-2027 (MT) | BL22: =MAX(BL$6+BO$6+BR$6+BL5+BO5+BR5+BL4-BO23-BL23-BR24-BO24-BL24-BR23-BB$22,0) -> 112.7 | BM22: =MAX(BM$6+BP$6+BS$6+BM5+BP5+BS5+BM4-BP23-BM23-BS24-BP24-BM24-BS23-BC$22,0) -> 2.65 | BN22: =MAX(BN$6+BQ$6+BT$6+BN5+BQ5+BT5+BN4-BQ23-BN23-BT24-BQ24-BN24-BT23-BD$22,0) -> 7.4 | BO22: =MAX(BL$6+BO$6+BR$6+BL5+BO5+BR5+BL4+BO4-BO23-BL23-BR24-BO24-BL24-BR23-BL22-BB$22,0) -> 0 | BP22: =MAX(BM$6+BP$6+BS$6+BM5+BP5+BS5+BM4+BP4-BP23-BM23-BS24-BP24-BM24-BS23-BM22-BC$22,0) -> 1.387778781e-16 | BQ22: =MAX(BN$6+BQ$6+BT$6+BN5+BQ5+BT5+BN4+BQ4-BQ23-BN23-BT24-BQ24-BN24-BT23-BN22-BD$22,0) -> 0 | BR22: =MAX(BL$6+BO$6+BR$6+BL5+BO5+BR5+BL4+BO4+BR4-BO23-BL23-BR24-BO24-BL24-BR23-BL22-BO22-BB$22,0) -> 60 | BS22: =MAX(BM$6+BP$6+BS$6+BM5+BP5+BS5+BM4+BP4+BS4-BP23-BM23-BS24-BP24-BM24-BS23-BM22-BP22-BC$22,0) -> 3 | BT22: =MAX(BN$6+BQ$6+BT$6+BN5+BQ5+BT5+BN4+BQ4+BT4-BQ23-BN23-BT24-BQ24-BN24-BT23-BN22-BQ22-BD$22,0) -> 25 | BU22: ->> Carry over to next period
BK23: IC Emission Credits (MT) - Gen CY, exp next year | BL23: =MAX(BL$6+BO$6+BR$6+BL5-BO24-BR24-BB$22,0) -> 0 | BM23: =MAX(BM$6+BP$6+BS$6+BM5-BP24-BS24-BC$22,0) -> 0.2035367999 | BN23: =MAX(BN$6+BQ$6+BT$6+BN5-BQ24-BT24-BD$22,0) -> 0 | BO23: =MAX(BL$6+BO$6+BR$6+BL5+BO5-BL23-BR24-BO24-BL24-BB$22,0) -> 0 | BP23: =MAX(BM$6+BP$6+BS$6+BM5+BP5-BM23-BS24-BP24-BM24-BC$22,0) -> 0 | BQ23: =MAX(BN$6+BQ$6+BT$6+BN5+BQ5-BN23-BT24-BQ24-BN24-BD$22,0) -> 0 | BR23: =MAX(BL$6+BO$6+BR$6+BL5+BO5+BR5-BO23-BL23-BR24-BO24-BL24-BB$22,0) -> 5.960585572 | BS23: =MAX(BM$6+BP$6+BS$6+BM5+BP5+BS5-BP23-BM23-BS24-BP24-BM24-BC$22,0) -> 0.9135367999 | BT23: =MAX(BN$6+BQ$6+BT$6+BN5+BQ5+BT5-BQ23-BN23-BT24-BQ24-BN24-BD$22,0) -> 8.075088494 | BU23: ->> Carry over to next period
A24: Data for Monthly Report 93130.7(e)(4) | BK24: Expired Credits (MT) | BL24: =MAX(BL$6-BB$22,0) -> 23.68970721 | BM24: =MAX(BM$6-BC$22,0) -> 0.4864632001 | BN24: =MAX(BN$6-BD$22,0) -> 1.672455753 | BO24: =MAX(BL$6+BO$6-BB$22,0) -> 86.68970721 | BP24: =MAX(BM$6+BP$6-BC$22,0) -> 0.4864632001 | BQ24: =MAX(BN$6+BQ$6-BD$22,0) -> 3.172455753 | BR24: =MAX(BL$6+BO$6+BR$6-BB$22,0) -> 114.2897072 | BS24: =MAX(BM$6+BP$6+BS$6-BC$22,0) -> 1.9864632 | BT24: =MAX(BN$6+BQ$6+BT$6-BD$22,0) -> 12.87245575
BJ27: Retired (Applied) Credits | BK27: Banked Credits Pre-2027 (MT) | BL27: =BL4-BL22 -> 0 | BM27: 0 | BN27: 0 | BO27: 0 | BP27: -1.387778781e-16 | BQ27: 0 | BR27: 0 | BS27: 0 | BT27: 0
BK28: IC Emission Credits (MT) - Gen CY, exp next year | BL28: =BL5-BL23 -> 29.34 | BM28: 0.4864632001 | BN28: 1.92 | BO28: 60 | BP28: 0 | BQ28: 1.5 | BR28: 21.03941443 | BS28: 0.4864632001 | BT28: 1.424911506
BK29: IC Emission Credits (MT) - Gen CY, exp this year | BL29: =BL6-BL24 -> 5.650292786 | BM29: 0.2035367999 | BN29: 0.247544247 | BO29: -23.68970721 | BP29: -0.4864632001 | BQ29: -1.672455753 | BR29: -86.68970721 | BS29: -0.4864632001 | BT29: -3.172455753
BK30: Total by IC (MT) | BL30: =SUM(BL27:BL29) -> 34.99029279 | BM30: =SUM(BM27:BM29) -> 0.69 | BN30: 2.167544247 | BO30: 36.31029279 | BP30: -0.4864632001 | BQ30: -0.172455753 | BR30: -65.65029279 | BS30: 0 | BT30: -1.747544247
BL32: NOx | BM32: PM2.5 | BN32: ROG
BK33: Total Applied all IC's (MT) | BL33: =BL30+BO30+BR30 -> 5.650292786 | BM33: =BM30+BP30+BS30 -> 0.2035367999 | BN33: =BN30+BQ30+BT30 -> 0.247544247
BK34: Total Expired (MT) | BL34: =BL24+BO24+BR24 -> 224.6691216 | BM34: =BM24+BP24+BS24 -> 2.9593896 | BN34: =BN24+BQ24+BT24 -> 17.71736726
BK35: Total Retired (MT) | BL35: =SUM(BL33:BL34) -> 230.3194144 | BM35: =SUM(BM33:BM34) -> 3.1629264 | BN35: =SUM(BN33:BN34) -> 17.96491151
BK37: Total Remaining Credits (MT) | BL37: =SUM(BL22:BL23,BO22:BO23,BR22:BR23) -> 178.6605856 | BM37: =SUM(BM22:BM23,BP22:BP23,BS22:BS23) -> 6.7670736 | BN37: 40.47508849

Sheet Values (hidden)
A1: Constants
A3: Gallons per Bbl | B3: 42 | C3: v.GalPerBbl
A4: Days per Year | B4: 365 | C4: v.DaysPerYear
A5: Weeks per Year | B5: 52 | C5: v.WeekPerYear
A6: Hundred | B6: 100 | C6: v.Hundred
A7: Thousand | B7: 1000 | C7: v.Thousand
A8: Million | B8: 1000000 | C8: v.Million
A9: Mass of Water (lb/Bbl) | B9: 349.8 | C9: v.WaterMass
A10: Propane, EFO/Bbl | B10: 0.6405 | C10: v.C3_EFOperBbl
A11: Lbs per MT | B11: 2204.6 | C11: v.lbsPerMT
A12: Kg per MT | B12: 1000 | C12: v.kgperMT
A13: kG CO2 per gallon CO2 combustion | B13: 10.20648 | C13: v.kgCO2perGalDsl
A15: Data Validation Ranges
B16: dv.10_50_90
B17: P10
B18: P50
B19: P90
B21: dv.TF
B22: TRUE
B23: FALSE
B25: dv.LMH
B26: Low
B27: Mid
B28: High
A39: dv.fcst
A40: 10
A41: 50
A42: 90
A46: dv.include
A47: Yes
A48: No
A50: dv.BaseEmissionsPeriod
A51: 2016
A52: 2019
A53: 2021

Sheet EFs & LFs
B3: Starcrest 2020 PoLB Loads
B5: Ship Type | C5: Aux Engine (kW) | D5: Aux Boiler (kW) | H5: Emission Factors
D7: Pump | E7: Other | H7: Source | I7: g/kWh
B8: Chemical | C8: 1395 | D8: 421 | E8: 875 | I8: NOx | J8: PM2.5 | K8: ROG
B9: Product | C9: 1050 | D9: 3089 | E9: 875 | H9: Aux Engines | I9: 13.8 | J9: 0.17 | K9: 0.52
B10: PanaMax | C10: 832 | D10: 3547 | E10: 875 | H10: Boilers | I10: 2 | J10: 0.17 | K10: 0.11
B11: AfraMax | C11: 986 | D11: 4976 | E11: 875
B12: SuezMax | C12: 689 | D12: 8170 | E12: 875
B13: VLCC | C13: 1011 | D13: 220 | E13: 875
I15: Aux Engine (g/kWh) | L15: Boiler (g/kWh)
H16: Tier | I16: NOx | J16: PM2.5 | K16: ROG | L16: NOx | M16: PM2.5 | N16: ROG
H17: 0 | I17: 13.8 | J17: 0.17 | K17: 0.506556 | L17: 2 | M17: 0.13 | N17: 0.126639
H18: 1 | I18: 12.2 | J18: 0.17 | K18: 0.506556 | L18: 2 | M18: 0.13 | N18: 0.126639
H19: 2 | I19: 10.5 | J19: 0.17 | K19: 0.506556 | L19: 2 | M19: 0.13 | N19: 0.126639
H20: 3 | I20: 2.6 | J20: 0.17 | K20: 0.506556 | L20: 2 | M20: 0.13 | N20: 0.126639
H21: TG | I21: 0 | J21: 0 | K21: 0 | L21: 2 | M21: 0.13 | N21: 0.126639
